fUSD/lending_fUSD_20251017
["ID","MTS","AMOUNT","RATE_DAILY","PERIOD"]
[391693782,1760730657002,-500.0,0.00044383,120]
[391693783,1760730657011,-500.48361792,0.00044383,120]
[391693784,1760730657020,-500.0,0.00044383,120]
[391693785,1760730657030,-500.0,0.00044383,120]
[391693786,1760730657039,-609.73,0.00044383,120]
[391693787,1760730657048,-273.36267843,0.00044383,120]
[391693788,1760730657058,-500.0,0.00044383,120]
[391693789,1760730657067,-500.0,0.00044383,120]
[391693790,1760730657076,-500.0,0.00044383,120]
[391693791,1760730657085,-500.0,0.00044383,120]
[391693792,1760730657095,-500.0,0.00044383,120]
[391693793,1760730657104,-500.0,0.00044383,120]
[391693794,1760730657113,-500.0,0.00044383,120]
[391693795,1760730657123,-500.0,0.00044383,120]
[391693796,1760730657132,-500.0,0.00044383,120]
[391693797,1760730657141,-500.0,0.00044383,120]
[391693798,1760730657151,-268.4943097,0.00044383,120]
[391693799,1760730657160,-500.0,0.00044383,120]
[391693800,1760730657170,-500.0,0.00044383,120]
[391693801,1760730657179,-500.0,0.00044383,120]
[391693802,1760730657189,-500.0,0.00044383,2]
[391693803,1760730657198,-500.0,0.00044383,120]
[391693804,1760730657207,-500.0,0.00044383,120]
[391693805,1760730657216,-500.0,0.00044383,120]
[391693806,1760730657225,-500.0,0.00044383,120]
[391693807,1760730657235,-453.26074285,0.00044383,120]
[391693808,1760730657245,-500.0,0.00044383,120]
[391693809,1760730657255,-500.0,0.00044383,120]
[391693810,1760730657264,-500.0,0.00044383,120]
[391693811,1760730657273,-509.91181519,0.00044383,120]
[391693812,1760730657282,-500.0,0.00044383,120]
[391693813,1760730657292,-500.0,0.00044383,120]
[391693814,1760730657302,-500.0,0.00044383,120]
[391693815,1760730657312,-500.0,0.00044383,120]
[391693816,1760730657322,-500.0,0.00044383,120]
[391693817,1760730657331,-500.0,0.00044383,120]
[391693818,1760730657341,-500.0,0.00044383,120]
[391693819,1760730657350,-428.56986794,0.00044383,120]
[391693820,1760730657359,-500.0,0.00044383,120]
[391693821,1760730657371,-500.0,0.00044383,120]
[391693822,1760730657380,-500.0,0.00044383,120]
[391693823,1760730657390,-309.05279234,0.00044383,120]
[391693824,1760730657399,-500.0,0.00044383,120]
[391693825,1760730657408,-500.0,0.00044383,120]
[391693826,1760730657421,-500.0,0.00044383,120]
[391693827,1760730657430,-500.0,0.00044383,120]
[391693828,1760730657440,-156.78195695,0.00044383,120]
[391693829,1760730657450,-632.36311727,0.00044383,120]
[391693830,1760730657460,-242.08220076,0.00044383,120]
[391693831,1760730657470,-500.0,0.00044383,120]
[391693832,1760730657479,-500.0,0.00044383,120]
[391693833,1760730657490,-500.0,0.00044383,120]
[391693834,1760730657499,-500.0,0.00044383,120]
[391693835,1760730657509,-500.0,0.00044383,120]
[391693836,1760730657518,-500.0,0.00044383,14]
[391693837,1760730657527,-500.0,0.00044383,120]
[391693838,1760730657537,-500.0,0.00044383,120]
[391693839,1760730657546,-500.0,0.00044383,120]
[391693840,1760730657555,-500.0,0.00044383,120]
[391693841,1760730657565,-500.0,0.00044383,30]
[391693842,1760730657574,-542.48222236,0.00044383,120]
[391693843,1760730657584,-500.0,0.00044383,120]
[391693844,1760730657594,-500.0,0.00044383,120]
[391693845,1760730657604,-500.0,0.00044383,120]
[391693846,1760730657613,-500.0,0.00044383,120]
[391693847,1760730657623,-500.0,0.00044383,120]
[391693848,1760730657632,-500.0,0.00044383,120]
[391693849,1760730657642,-500.0,0.00044383,120]
[391693850,1760730657652,-500.0,0.00044383,120]
[391693851,1760730657661,-1000.0,0.00044383,120]
[391693852,1760730657671,-500.0,0.00044383,120]
[391693853,1760730657680,-500.0,0.00044383,120]
[391693854,1760730657690,-500.0,0.00044383,120]
[391693855,1760730657699,-632.03,0.00044383,120]
[391693856,1760730657709,-500.0,0.00044383,120]
[391693857,1760730657718,-500.0,0.00044383,120]
[391693858,1760730657728,-500.0,0.00044383,120]
[391693859,1760730657743,-500.0,0.00044383,120]
[391693860,1760730657752,-500.0,0.00044383,120]
[391693861,1760730657761,-500.0,0.00044383,120]
[391693862,1760730657770,-500.0,0.00044383,120]
[391693863,1760730657780,-500.0,0.00044383,120]
[391693864,1760730657790,-500.0,0.00044383,120]
[391693865,1760730657800,-500.0,0.00044383,2]
[391693866,1760730657809,-500.0,0.00044383,120]
[391693867,1760730657819,-500.0,0.00044383,120]
[391693868,1760730657829,-500.0,0.00044383,120]
[391693869,1760730657839,-1990.95,0.00044383,120]
[391693870,1760730657848,-500.0,0.00044383,120]
[391693871,1760730657859,-500.0,0.00044383,120]
[391693872,1760730657869,-500.0,0.00044383,120]
[391693873,1760730657879,-500.0,0.00044383,120]
[391693874,1760730657889,-500.0,0.00044383,14]
[391693875,1760730657898,-500.0,0.00044383,120]
[391693876,1760730657909,-500.0,0.00044383,120]
[391693877,1760730657919,-500.0,0.00044383,120]
[391693878,1760730657929,-500.0,0.00044383,120]
[391693879,1760730657939,-500.0,0.00044383,120]
[391693880,1760730657950,-500.0,0.00044383,120]
[391693881,1760730657960,-272.07085876,0.00044383,120]
[391693882,1760730657970,-500.0,0.00044383,120]
[391693883,1760730657979,-500.0,0.00044383,120]
[391693884,1760730657990,-613.78,0.00044383,120]
[391693885,1760730657999,-500.0,0.00044383,120]
[391693886,1760730658009,-500.0,0.00044383,120]
[391693887,1760730658019,-500.0,0.00044383,120]
[391693888,1760730658029,-500.0,0.00044383,120]
[391693889,1760730658039,-500.0,0.00044383,120]
[391693890,1760730658049,-500.0,0.00044383,120]
[391693891,1760730658059,-500.0,0.00044384,2]
[391693892,1760730658068,-150.0,0.00044389,120]
[391693893,1760730658077,-153.0,0.000444,120]
[391693894,1760730658087,-236.9780986,0.00044407,15]
[391693895,1760730658096,-500.0,0.0004441,30]
[391693896,1760730658105,-150.0,0.00044425,30]
[391693897,1760730658115,-233.96347,0.00044445,30]
[391693898,1760730658125,-150.0,0.0004445,30]
[391693899,1760730658134,-150.0,0.00044488,30]
[391693900,1760730658144,-152.0,0.000445,120]
[391693901,1760730658153,-150.0,0.00044556,30]
[391693902,1760730658163,-150.0,0.00044586,30]
[391693903,1760730658173,-233.96347,0.00044645,30]
[391693904,1760730658182,-500.0,0.00044656,120]
[391693905,1760730658191,-500.0,0.00044656,120]
[391693906,1760730658201,-500.0,0.00044656,120]
[391693907,1760730658211,-543.59552556,0.00044656,120]
[391693908,1760730658220,-457.41416845,0.00044656,120]
[391693909,1760730658231,-504.49515593,0.00044656,120]
[391693910,1760730658241,-500.0,0.00044656,120]
[391693911,1760730658251,-500.0,0.00044657,120]
[391693912,1760730658260,-624.81368908,0.00044657,120]
[391693913,1760730658269,-504.16,0.00044657,120]
[391693914,1760730658279,-500.0,0.00044657,120]
[391693915,1760730658288,-500.0,0.00044657,120]
[391693916,1760730658297,-500.0,0.00044657,120]
[391693917,1760730658307,-500.0,0.00044657,120]
[391693918,1760730658316,-500.0,0.00044657,120]
[391693919,1760730658325,-500.0,0.00044657,120]
[391693920,1760730658335,-500.0,0.00044657,120]
[391693921,1760730658343,-500.0,0.00044657,120]
[391693922,1760730658353,-500.0,0.00044657,120]
[391693923,1760730658363,-500.0,0.00044657,120]
[391693924,1760730658490,-500.0,0.00044657,120]
[391693925,1760730658515,-500.0,0.00044657,120]
[391693926,1760730658524,-500.0,0.00044657,120]
[391693927,1760730658534,-500.0,0.00044657,120]
[391693928,1760730658543,-500.0,0.00044657,120]
[391693929,1760730658552,-500.0,0.00044657,120]
[391693930,1760730658562,-500.0,0.00044657,30]
[391693931,1760730658571,-500.0,0.00044657,120]
[391693932,1760730658581,-500.0,0.00044657,120]
[391693933,1760730658591,-500.0,0.00044657,120]
[391693934,1760730658600,-500.0,0.00044657,120]
[391693935,1760730658610,-500.0,0.00044657,120]
[391693936,1760730658620,-500.0,0.00044657,120]
[391693937,1760730658629,-500.0,0.00044657,120]
[391693938,1760730658639,-500.0,0.00044657,120]
[391693939,1760730658648,-500.0,0.00044657,120]
[391693940,1760730658658,-500.0,0.00044657,120]
[391693941,1760730658668,-500.0,0.00044657,120]
[391693942,1760730658677,-500.0,0.00044657,120]
[391693943,1760730658687,-500.0,0.00044657,120]
[391693944,1760730658697,-500.0,0.00044657,120]
[391693945,1760730658706,-500.0,0.00044657,120]
[391693946,1760730658715,-445.01785237,0.00044657,120]
[391693947,1760730658724,-500.0,0.00044657,120]
[391693948,1760730658734,-500.0,0.00044657,120]
[391693949,1760730658745,-500.0,0.00044657,120]
[391693950,1760730658754,-500.0,0.00044657,120]
[391693951,1760730658763,-500.0,0.00044657,120]
[391693952,1760730658772,-500.0,0.00044657,120]
[391693953,1760730658782,-500.0,0.00044657,120]
[391693954,1760730658791,-500.0,0.00044657,120]
[391693955,1760730658801,-500.0,0.00044657,120]
[391693956,1760730658811,-500.0,0.00044657,120]
[391693957,1760730658821,-500.0,0.00044657,120]
[391693958,1760730658831,-500.0,0.00044657,2]
[391693959,1760730658839,-500.0,0.00044657,120]
[391693960,1760730658849,-500.0,0.00044657,120]
[391693961,1760730658858,-500.0,0.00044657,120]
[391693962,1760730658867,-500.0,0.00044657,120]
[391693963,1760730658877,-500.0,0.00044657,120]
[391693964,1760730658886,-500.0,0.00044657,120]
[391693965,1760730658896,-460.07573666,0.00044657,120]
[391693966,1760730658906,-500.0,0.00044657,120]
[391693967,1760730658915,-500.0,0.00044657,120]
[391693968,1760730658924,-500.0,0.00044657,120]
[391693969,1760730658934,-500.0,0.00044657,120]
[391693970,1760730658943,-504.10369482,0.00044657,120]
[391693971,1760730658953,-500.0,0.00044657,120]
[391693972,1760730658963,-500.0,0.00044657,120]
[391693973,1760730658972,-500.0,0.00044657,120]
[391693974,1760730658983,-500.0,0.00044657,14]
[391693975,1760730658992,-500.0,0.00044657,120]
[391693976,1760730659001,-500.0,0.00044657,30]
[391693977,1760730659012,-500.0,0.00044657,120]
[391693978,1760730659022,-500.0,0.00044657,120]
[391693979,1760730659031,-500.0,0.00044657,120]
[391693980,1760730659040,-500.0,0.00044657,120]
[391693981,1760730659049,-369.35,0.00044657,120]
[391693982,1760730659059,-1000.0,0.00044657,120]
[391693983,1760730659068,-500.0,0.00044657,120]
[391693984,1760730659077,-500.0,0.00044657,120]
[391693985,1760730659087,-500.0,0.00044657,120]
[391693986,1760730659096,-632.03,0.00044657,120]
[391693987,1760730659105,-500.0,0.00044657,120]
[391693988,1760730659115,-500.0,0.00044657,120]
[391693989,1760730659124,-500.0,0.00044657,120]
[391693990,1760730659133,-500.0,0.00044657,120]
[391693991,1760730659143,-500.0,0.00044657,120]
[391693992,1760730659152,-500.0,0.00044657,120]
[391693993,1760730659162,-500.0,0.00044657,120]
[391693994,1760730659172,-500.0,0.00044657,120]
[391693995,1760730659182,-411.1109457,0.00044657,120]
[391693996,1760730659191,-500.0,0.00044657,2]
[391693997,1760730659200,-400.0,0.00044657,120]
[391693998,1760730659210,-500.0,0.00044657,120]
[391693999,1760730659220,-500.0,0.00044657,120]
[391694000,1760730659229,-1990.95,0.00044657,120]
[391694001,1760730659238,-500.0,0.00044657,120]
[391694002,1760730659248,-500.0,0.00044657,120]
[391694003,1760730659257,-500.0,0.00044657,120]
[391694004,1760730659266,-500.0,0.00044657,120]
[391694005,1760730659275,-500.0,0.00044657,120]
[391694006,1760730659284,-500.0,0.00044657,120]
[391694007,1760730659294,-500.0,0.00044657,120]
[391694008,1760730659303,-500.0,0.00044657,120]
[391694009,1760730659316,-500.0,0.00044657,120]
[391694010,1760730659326,-500.0,0.00044657,120]
[391694011,1760730659335,-500.0,0.00044657,120]
[391694012,1760730659345,-500.0,0.00044657,120]
[391694013,1760730659355,-500.0,0.00044657,120]
[391694014,1760730659365,-500.0,0.00044657,120]
[391694015,1760730659375,-500.0,0.00044657,120]
[391694016,1760730659385,-500.0,0.00044657,120]
[391694017,1760730659395,-500.0,0.00044657,120]
[391694018,1760730659404,-422.81,0.00044657,120]
[391694019,1760730659414,-150.0,0.00044663,30]
[391694020,1760730659424,-500.0,0.00044684,30]
[391694021,1760730659434,-150.0,0.0004469,30]
[391694022,1760730659444,-150.0,0.00044757,30]
[391694023,1760730659454,-150.0,0.0004477,30]
[391694024,1760730659463,-150.0,0.00044778,30]
[391694025,1760730659473,-1000.0,0.00044791,90]
[391694026,1760730659484,-619.125,0.00044791,90]
[391694027,1760730659494,-150.0,0.00044794,30]
[391694028,1760730659504,-1100.0,0.000448,16]
[391694029,1760730659515,-1000.0,0.00044813,30]
[391694030,1760730659525,-1000.0,0.00044813,30]
[391694031,1760730659535,-233.96347,0.00044845,30]
[391694032,1760730659546,-150.0,0.00044876,30]
[391694033,1760730659556,-1400.0,0.000449,16]
[391694034,1760730659567,-168.97929565,0.000449,2]
[391694035,1760730659577,-5637.01042964,0.000449,2]
[391694036,1760730659587,-500.0,0.0004493,120]
[391694037,1760730659596,-500.0,0.0004493,120]
[391694038,1760730659606,-2000.0,0.00044931,7]
[391694039,1760730659615,-500.0,0.00044931,120]
[391694040,1760730659625,-504.16,0.00044931,120]
[391694041,1760730659634,-500.0,0.00044931,120]
[391694042,1760730659645,-207.63,0.00044931,120]
[391694043,1760730659655,-500.0,0.00044931,120]
[391694044,1760730659664,-500.0,0.00044931,120]
[391694045,1760730659675,-208.88,0.00044931,120]
[391694046,1760730659685,-500.0,0.00044931,120]
[391694047,1760730659696,-500.0,0.00044931,120]
[391694048,1760730659706,-500.0,0.00044931,120]
[391694049,1760730659715,-500.0,0.00044931,120]
[391694050,1760730659726,-500.0,0.00044931,120]
[391694051,1760730659738,-500.0,0.00044931,120]
[391694052,1760730659748,-500.0,0.00044931,120]
[391694053,1760730659758,-500.0,0.00044931,120]
[391694054,1760730659767,-500.0,0.00044931,30]
[391694055,1760730659777,-500.0,0.00044931,120]
[391694056,1760730659790,-500.0,0.00044931,120]
[391694057,1760730659802,-500.0,0.00044931,120]
[391694058,1760730659813,-500.0,0.00044931,120]
[391694059,1760730659823,-500.0,0.00044931,120]
[391694060,1760730659832,-500.0,0.00044931,120]
[391694061,1760730659842,-222.3,0.00044931,120]
[391694062,1760730659852,-500.0,0.00044931,120]
[391694063,1760730659862,-500.0,0.00044931,120]
[391694064,1760730659872,-500.0,0.00044931,120]
[391694065,1760730659882,-481.11,0.00044931,120]
[391694066,1760730659891,-500.0,0.00044931,120]
[391694067,1760730659900,-500.0,0.00044931,120]
[391694068,1760730659910,-500.0,0.00044931,120]
[391694069,1760730659919,-500.0,0.00044931,120]
[391694070,1760730659928,-500.0,0.00044931,120]
[391694071,1760730659938,-500.0,0.00044931,120]
[391694072,1760730659948,-500.0,0.00044931,120]
[391694073,1760730659958,-500.0,0.00044931,120]
[391694074,1760730659968,-383.559621,0.00044931,120]
[391694075,1760730659978,-500.0,0.00044931,120]
[391694076,1760730659988,-428.76,0.00044931,120]
[391694077,1760730659997,-500.0,0.00044931,120]
[391694078,1760730660007,-500.0,0.00044931,120]
[391694079,1760730660017,-500.0,0.00044931,120]
[391694080,1760730660027,-554.00983153,0.00044931,120]
[391694081,1760730660036,-500.0,0.00044931,120]
[391694082,1760730660046,-500.0,0.00044931,120]
[391694083,1760730660056,-500.0,0.00044931,120]
[391694084,1760730660066,-500.0,0.00044931,120]
[391694085,1760730660076,-500.0,0.00044931,14]
[391694086,1760730660085,-514.72,0.00044931,120]
[391694087,1760730660095,-500.0,0.00044931,120]
[391694088,1760730660104,-500.0,0.00044931,120]
[391694089,1760730660114,-500.0,0.00044931,120]
[391694090,1760730660124,-500.0,0.00044931,120]
[391694091,1760730660133,-1000.0,0.00044931,120]
[391694092,1760730660143,-500.0,0.00044931,120]
[391694093,1760730660154,-405.92,0.00044931,120]
[391694094,1760730660163,-585.90399957,0.00044931,120]
[391694095,1760730660173,-632.03,0.00044931,120]
[391694096,1760730660183,-500.0,0.00044931,120]
[391694097,1760730660193,-500.0,0.00044931,120]
[391694098,1760730660202,-533.03,0.00044931,120]
[391694099,1760730660212,-500.0,0.00044931,120]
[391694100,1760730660224,-500.0,0.00044931,120]
[391694101,1760730660233,-500.0,0.00044931,120]
[391694102,1760730660243,-500.0,0.00044931,120]
[391694103,1760730660253,-500.0,0.00044931,120]
[391694104,1760730660263,-500.0,0.00044931,2]
[391694105,1760730660272,-500.0,0.00044931,120]
[391694106,1760730660282,-500.0,0.00044931,120]
[391694107,1760730660291,-1990.95,0.00044931,120]
[391694108,1760730660301,-500.0,0.00044931,120]
[391694109,1760730660310,-591.19826866,0.00044931,120]
[391694110,1760730660320,-500.0,0.00044931,120]
[391694111,1760730660329,-500.0,0.00044931,120]
[391694112,1760730660339,-500.0,0.00044931,120]
[391694113,1760730660349,-418.2052984,0.00044931,120]
[391694114,1760730660358,-500.0,0.00044931,120]
[391694115,1760730660368,-500.0,0.00044931,120]
[391694116,1760730660378,-500.0,0.00044931,120]
[391694117,1760730660387,-190.34031939,0.00044931,120]
[391694118,1760730660397,-500.0,0.00044931,120]
[391694119,1760730660407,-598.23,0.00044931,120]
[391694120,1760730660417,-500.0,0.00044931,120]
[391694121,1760730660427,-500.0,0.00044931,120]
[391694122,1760730660437,-383.41,0.00044931,120]
[391694123,1760730660446,-500.0,0.00044958,30]
[391694124,1760730660456,-150.0,0.00044983,30]
[391694125,1760730660466,-700.0,0.0004499,120]
[391694126,1760730660477,-500.0,0.0004499,120]
[391694127,1760730660487,-150.0,0.0004499,120]
[391694128,1760730660497,-258.72683921,0.00044997,120]
[391694129,1760730660506,-1000.0,0.00044999,120]
[391694130,1760730660516,-500.0,0.00044999,30]
[391694131,1760730660526,-500.0,0.00044999,30]
[391694132,1760730660535,-308723.0,0.00045,120]
[391694133,1760730660545,-645390.2878278,0.00045,120]
[391694134,1760730660696,-1228.0,0.00045,120]
[391694135,1760730660707,-2033.9295,0.00045,120]
[391694136,1760730660718,-1916.868686,0.00045,120]
[391694137,1760730660736,-2136.0,0.00045,120]
[391694138,1760730660750,-23110.0,0.00045,120]
[391694139,1760730660762,-17836.05875691,0.00045,120]
[391694140,1760730660773,-7325.71350668,0.00045,120]
[391694141,1760730660785,-12426.20006856,0.00045,120]
[391694142,1760730660796,-601.715,0.00045,120]
[391694143,1760730660807,-8022.40295519,0.00045,120]
[391694192,1760731307901,-153.65,0.00014328,2]
[391694221,1760731549317,-300.0,0.00014529,2]
[391694222,1760731549346,-2500.0,0.00014535,2]
[391694223,1760731549374,-195.0,0.00014535,2]
[391694224,1760731549403,-300.0,0.00014541,2]
[391694225,1760731549432,-500.0,0.00014552,3]
[391694226,1760731549461,-232.46348513,0.00014597,3]
[391694227,1760731549490,-2500.0,0.00014616,2]
[391694228,1760731549520,-195.0,0.00014616,2]
[391694229,1760731549548,-384.7408147,0.0001486,2]
[391694230,1760731549575,-274.91068765,0.00014975,2]
[391694231,1760731549603,-361.110072,0.00015569,2]
[391694232,1760731549631,-1200.0,0.0001576,2]
[391694233,1760731549659,-1200.0,0.00015799,2]
[391694234,1760731549687,-300.0,0.00015799,2]
[391694235,1760731549715,-300.0,0.00015799,2]
[391694236,1760731549743,-500.0,0.000158,2]
[391694237,1760731549772,-582.12131672,0.000158,2]
[391694238,1760731549792,-300.0,0.00015867,2]
[391694239,1760731549803,-200.0,0.00015867,2]
[391694240,1760731549812,-501.6135376,0.00015867,2]
[391694241,1760731549823,-501.55726296,0.00015867,2]
[391694242,1760731549832,-500.0,0.00015867,2]
[391694243,1760731549846,-500.0,0.000159,2]
[391694244,1760731549855,-296.82919944,0.000159,2]
[391694245,1760731549866,-195.0,0.000159,2]
[391694246,1760731549877,-8.17080056,0.000159,2]
[391694247,1760731549887,-291.82919944,0.000159,2]
[391694248,1760731549898,-208.17080056,0.000159,2]
[391694249,1760731549907,-291.82919944,0.000159,2]
[391694250,1760731549917,-208.17080056,0.000159,2]
[391694251,1760731549926,-24.29268457,0.00015958,3]
[391694252,1760731549937,-475.70731543,0.00015958,3]
[391694253,1760731549946,-250.0,0.00015958,2]
[391694254,1760731549955,-300.0,0.00015958,2]
[391694255,1760731549965,-1474.29268457,0.00015958,2]
[391694256,1760731549975,-195.0,0.00015958,2]
[391694257,1760731549991,-384.7408147,0.00015958,2]
[391694258,1760731550001,-274.91068765,0.00015958,2]
[391694259,1760731550012,-171.05581308,0.00015958,2]
[391694260,1760731550021,-190.05425892,0.00015958,3]
[391694261,1760731550034,-309.94574108,0.00015958,3]
[391694262,1760731550043,-282.71168228,0.00015958,2]
[391694263,1760731550051,-241.24429689,0.00015958,2]
[391694264,1760731550061,-300.0,0.00015958,2]
[391694265,1760731550070,-66.09827975,0.00015958,2]
[391694266,1760731550080,-1200.0,0.00015958,2]
[391694267,1760731550091,-300.0,0.00015958,2]
[391694268,1760731550102,-300.0,0.00015958,2]
[391694269,1760731550113,-500.0,0.00015958,2]
[391694270,1760731550123,-133.90172025,0.00015958,2]
[391694271,1760731550132,-448.21959647,0.00015958,3]
[391694272,1760731550143,-51.78040353,0.00015958,3]
[391694273,1760731550152,-297.52684407,0.00015958,2]
[391694298,1760731831925,-167.4791853,0.00015882,2]
[391694299,1760731831935,-467.33412902,0.0001592,3]
[391694300,1760731832116,-32.66587098,0.0001592,3]
[391694301,1760731832127,-195.0,0.0001592,2]
[391694302,1760731832136,-300.0,0.00015981,2]
[391694303,1760731832145,-300.0,0.00015981,2]
[391694304,1760731832154,-393.61722337,0.00015981,2]
[391694305,1760731832168,-806.38277663,0.00015981,2]
[391694306,1760731832177,-324.73,0.00015982,2]
[391694307,1760731832187,-195.0,0.00015982,2]
[391694308,1760731832197,-324.73,0.00016256,2]
[391694309,1760731832206,-324.73,0.0001653,2]
[391694310,1760731832216,-182.8,0.00016712,2]
[391694311,1760731832226,-324.73,0.00016804,2]
[391694312,1760731832236,-250.0,0.00017,2]
[391694313,1760731832247,-324.77,0.00017078,2]
[391694314,1760731832256,-724.22378052,0.0001747,2]
[391694316,1760731832271,-1775.77621948,0.0001747,2]
[391694318,1760731832283,-487.58722337,0.0001747,3]
[391694338,1760731832466,-12.41277663,0.0001747,3]
[391694342,1760731832476,-195.0,0.0001747,2]
[391694343,1760731832486,-500.0,0.0001747,3]
[391694346,1760731832497,-27.14984703,0.00017473,2]
[391694348,1760731832508,-392.85015297,0.00017473,2]
[391694349,1760731832518,-250.0,0.00017554,2]
[391694351,1760731832529,-300.0,0.00017554,2]
[391694353,1760731832539,-220.64891352,0.00017561,2]
[391694356,1760731832552,-1459.35108648,0.00017561,2]
[391694358,1760731832562,-153.65,0.00019104,2]
[391694360,1760731832573,-587.0,0.00019104,2]
[391694362,1760731832583,-1612.0,0.00019297,2]
[391694364,1760731832593,-850.0,0.00019799,2]
[391694366,1760731832603,-230.74094221,0.000198,2]
[391694368,1760731832613,-163.51521852,0.000198,2]
[391694370,1760731832623,-5933.37506914,0.000198,2]
[391694372,1760731832632,-204.22491195,0.000198,2]
[391694374,1760731832642,-164.70484905,0.000198,2]
[391694376,1760731832652,-230.74094221,0.0002,2]
[391694378,1760731832661,-5933.37506914,0.0002,2]
[391694380,1760731832670,-4170.97174543,0.000202,2]
[391694382,1760731832682,-608.24647079,0.000202,2]
[391694383,1760731832706,-699.36702806,0.000202,2]
[391694384,1760731832718,-454.78982486,0.000202,2]
[391694385,1760731832728,-481.23549469,0.000204,2]
[391694386,1760731832740,-1117.41460021,0.000204,2]
[391694387,1760731832752,-501.12426704,0.000204,2]
[391694388,1760731832768,-648.45120674,0.000204,2]
[391694389,1760731832781,-3185.14950046,0.000204,2]
[391694390,1760731832791,-5933.37506914,0.000206,2]
[391694391,1760731832802,-910.33,0.000208,2]
[391694392,1760731832812,-5933.37506914,0.000208,2]
[391694393,1760731832823,-150.0,0.00020809,2]
[391694394,1760731832833,-823.0,0.00020888,2]
[391694395,1760731832842,-5933.37506914,0.00021,2]
[391694396,1760731832852,-5933.37506914,0.000212,2]
[391694397,1760731832862,-5933.37506914,0.000215,2]
[391694398,1760731832872,-5933.37506914,0.000217,2]
[391694399,1760731832881,-1152.0,0.00022838,2]
[391694400,1760731832891,-2967.44470737,0.00023156,2]
[391694401,1760731832903,-153.65,0.0002388,2]
[391694402,1760731832914,-1613.0,0.0002497,2]
[391694403,1760731832924,-200.0,0.000251,7]
[391694404,1760731832935,-6862.423,0.00026411,13]
[391694405,1760731832944,-436.641,0.00026411,13]
[391694406,1760731832954,-500.0,0.00027096,2]
[391694407,1760731832964,-2258.0,0.00027301,2]
[391694408,1760731832977,-4300.3,0.00027382,2]
[391694409,1760731832988,-1000.0025,0.00027397,2]
[391694410,1760731832999,-200.0,0.0002747,2]
[391694411,1760731833010,-3357.44,0.00027482,2]
[391694412,1760731833022,-7475.18,0.00027695,2]
[391694413,1760731833033,-1500.0,0.00027935,120]
[391694414,1760731833044,-879.6,0.00028237,2]
[391694415,1760731833059,-153.65,0.00028656,2]
[391694416,1760731833069,-250.0,0.00028679,7]
[391694417,1760731833080,-150.0,0.00028798,2]
[391694418,1760731833091,-500.0,0.00028957,2]
[391694419,1760731833102,-1000.0,0.00028963,2]
[391694420,1760731833113,-2225.14,0.00029251,2]
[391694421,1760731833123,-2000.005,0.00030136,3]
[391694422,1760731833135,-291.0,0.00030249,2]
[391694423,1760731833145,-200.0,0.00030439,2]
[391694424,1760731833156,-152.0,0.00031,120]
[391694425,1760731833166,-150.0,0.000312,30]